[Event "FIDE Women World Blitz 2021"]
[Site "Warsaw"]
[Date "2021.12.30"]
[Round "13.3"]
[White "Rakhmangulova, Anastasiya"]
[Black "Parol, Pola"]
[Result "0-1"]
[ECO "B86"]
[WhiteElo "2174"]
[BlackElo "1823"]
[Annotator "NA"]
[PlyCount "160"]
[EventDate "2021.12.29"]
[EventType "swiss"]
[EventCountry "POL"]
[Tiebreak "Cut1 Buchholz"]
[SourceTitle "playchess.com"]
[Source "ChessBase"]
[SourceQuality "1"]
[TimeControl "180+2"]

1. e4 {[%emt 0:00:01]} c5 {[%emt 0:00:00]} 2. Nf3 {[%emt 0:00:01]} d6 {[%emt 0:
00:01]} 3. d4 {[%emt 0:00:01]} cxd4 {[%emt 0:00:01]} 4. Nxd4 {[%emt 0:00:01]}
Nf6 {[%emt 0:00:01]} 5. Nc3 {[%emt 0:00:00]} a6 {[%emt 0:00:00]} 6. Bc4 {
[%emt 0:00:01]} e6 {[%emt 0:00:01]} 7. Bb3 {[%emt 0:00:01]} Nbd7 {[%emt 0:00:
01]} 8. Bg5 {[%emt 0:00:11]} Nc5 {[%emt 0:00:04]} 9. Qe2 {[%emt 0:00:10]} Be7 {
[%emt 0:00:20]} 10. O-O-O {[%emt 0:00:08]} Nxb3+ {[%emt 0:00:17]} 11. Nxb3 {
[%emt 0:00:22]} Qc7 {[%emt 0:00:04]} 12. f4 {[%emt 0:00:05]} h6 {[%emt 0:00:14]
} 13. Bh4 {[%emt 0:00:09]} b5 {[%emt 0:00:10]} 14. e5 {[%emt 0:00:10]} dxe5 {
[%emt 0:00:12]} 15. fxe5 {[%emt 0:00:01]} Nd7 {[%emt 0:00:12]} 16. Bxe7 {
[%emt 0:00:12]} Kxe7 {[%emt 0:00:01]} 17. Rhe1 {[%emt 0:00:16]} Bb7 {[%emt 0:
00:06]} 18. Qg4 {[%emt 0:00:04]} g6 {[%emt 0:00:45]} 19. Qb4+ {[%emt 0:00:18]}
Ke8 {[%emt 0:00:00]} 20. Nd4 {[%emt 0:00:14]} Rc8 {[%emt 0:00:00]} 21. Re2 {
[%emt 0:00:20]} Nb6 {[%emt 0:00:20]} 22. Ndxb5 {[%emt 0:00:14]} axb5 {[%emt 0:
00:15]} 23. Nxb5 {[%emt 0:00:01]} Qc5 {[%emt 0:00:16]} 24. Nd6+ {[%emt 0:00:04]
} Ke7 {[%emt 0:00:03]} 25. Qxc5 {[%emt 0:00:04]} Rxc5 {[%emt 0:00:01]} 26. Nxb7
{[%emt 0:00:01]} Rb5 {[%emt 0:00:07]} 27. Nd6 {[%emt 0:00:08]} Ra5 {[%emt 0:00:
02]} 28. a3 {[%emt 0:00:09]} Rb8 {[%emt 0:00:08]} 29. Rf1 {[%emt 0:00:06]} f5 {
[%emt 0:00:09]} 30. Rf3 {[%emt 0:00:14]} Nd7 {[%emt 0:00:01]} 31. Nc4 {[%emt 0:
00:05]} Rc5 {[%emt 0:00:01]} 32. b3 {[%emt 0:00:02]} Rbb5 {[%emt 0:00:03]} 33.
a4 {[%emt 0:00:04]} Rb8 {[%emt 0:00:02]} 34. Rd3 {[%emt 0:00:01]} Rbc8 {
[%emt 0:00:06]} 35. a5 {[%emt 0:00:01]} Nb8 {[%emt 0:00:02]} 36. Nb6 {[%emt 0:
00:05]} R8c7 {[%emt 0:00:02]} 37. b4 {[%emt 0:00:01]} R5c6 {[%emt 0:00:02]} 38.
Kb2 {[%emt 0:00:04]} Rb7 {[%emt 0:00:02]} 39. Red2 {[%emt 0:00:02]} Na6 {
[%emt 0:00:02]} 40. c3 {[%emt 0:00:01]} Rcc7 {[%emt 0:00:02]} 41. Rd6 {[%emt 0:
00:02]} Nb8 {[%emt 0:00:03]} 42. Rd8 {[%emt 0:00:01]} Nc6 {[%emt 0:00:01]} 43.
Rh8 {[%emt 0:00:01]} Nxe5 {[%emt 0:00:01]} 44. Rh7+ {[%emt 0:00:03]} Kf6 {
[%emt 0:00:02]} 45. Rxh6 {[%emt 0:00:01]} Rc6 {[%emt 0:00:04]} 46. Rh4 {
[%emt 0:00:02]} Rcxb6 {[%emt 0:00:02]} 47. axb6 {[%emt 0:00:01]} Rxb6 {[%emt 0:
00:00]} 48. Rhd4 {[%emt 0:00:04]} Rc6 {[%emt 0:00:02]} 49. Kb3 {[%emt 0:00:01]}
Rc8 {[%emt 0:00:01]} 50. c4 {[%emt 0:00:01]} Rb8 {[%emt 0:00:02]} 51. b5 {
[%emt 0:00:01]} Nc6 {[%emt 0:00:01]} 52. Rd6 {[%emt 0:00:01]} Ne5 {[%emt 0:00:
01]} 53. b6 {[%emt 0:00:03]} Nf7 {[%emt 0:00:04]} 54. Rc6 {[%emt 0:00:02]} Ne5
{[%emt 0:00:02]} 55. Rcd6 {[%emt 0:00:00]} Nf7 {[%emt 0:00:00]} 56. c5 {
[%emt 0:00:02]} Nxd6 {[%emt 0:00:03]} 57. Rxd6 {[%emt 0:00:00]} Ke7 {[%emt 0:
00:01]} 58. Kb4 {[%emt 0:00:02]} e5 {[%emt 0:00:01]} 59. Rxg6 {[%emt 0:00:01]}
e4 {[%emt 0:00:01]} 60. Rg3 {[%emt 0:00:01]} f4 {[%emt 0:00:01]} 61. Rg4 {
[%emt 0:00:01]} Rf8 {[%emt 0:00:02]} 62. b7 {[%emt 0:00:03]} e3 {[%emt 0:00:01]
} 63. Rg5 {[%emt 0:00:02]} Ke6 {[%emt 0:00:01]} 64. Rg6+ {[%emt 0:00:00]} Ke5 {
[%emt 0:00:02]} 65. Rg7 {[%emt 0:00:01]} Ke6 {[%emt 0:00:01]} 66. Kc3 {[%emt 0:
00:06]} Rd8 {[%emt 0:00:02]} 67. Rg6+ {[%emt 0:00:14]} Ke5 {[%emt 0:00:03]} 68.
Rg5+ {[%emt 0:00:00]} Kf6 {[%emt 0:00:02]} 69. Rg4 {[%emt 0:00:02]} Kf5 {
[%emt 0:00:01]} 70. Rg7 {[%emt 0:00:01]} Kf6 {[%emt 0:00:02]} 71. Rg4 {[%emt 0:
00:01]} Kf5 {[%emt 0:00:00]} 72. Rg7 {[%emt 0:00:05]} Kf6 {[%emt 0:00:02]} 73.
Rd7 {[%emt 0:00:03]} e2 {[%emt 0:00:05]} 74. c6 {[%emt 0:00:05]} e1=Q+ {
[%emt 0:00:02]} 75. Kc4 {[%emt 0:00:00]} Qc1+ {[%emt 0:00:01]} 76. Kb5 {
[%emt 0:00:01]} Qb2+ {[%emt 0:00:01]} 77. Kc5 {[%emt 0:00:01]} Qc3+ {[%emt 0:
00:01]} 78. Kd6 {[%emt 0:00:01]} Qb4+ {[%emt 0:00:02]} 79. Kc7 {[%emt 0:00:01]}
Qa5+ {[%emt 0:00:01]} 80. Kd6 {[%emt 0:00:01]} Qe5# {[%emt 0:00:02]} 0-1

[Event "FIDE Women World Blitz 2021"]
[Site "Warsaw"]
[Date "2021.12.30"]
[Round "13.4"]
[White "Abdumalik, Zhansaya"]
[Black "Lagno, Kateryna"]
[Result "0-1"]
[ECO "C65"]
[WhiteElo "2507"]
[BlackElo "2550"]
[Annotator "ChessBase"]
[PlyCount "102"]
[EventDate "2021.12.29"]
[EventType "swiss"]
[EventCountry "POL"]
[Tiebreak "Cut1 Buchholz"]
[SourceTitle "playchess.com"]
[Source "ChessBase"]
[SourceQuality "1"]
[TimeControl "180+2"]

1. e4 {[%emt 0:00:02]} e5 {[%emt 0:00:00]} 2. Nf3 {[%emt 0:00:01]} Nc6 {
[%emt 0:00:02]} 3. Bb5 {[%emt 0:00:02]} Nf6 {[%emt 0:00:01]} 4. d3 {[%emt 0:00:
01]} Bc5 {[%emt 0:00:01]} 5. Nbd2 {[%emt 0:00:02]} O-O {[%emt 0:00:04]} 6. Nb3
{[%emt 0:00:01]} Bb6 {[%emt 0:00:04]} 7. O-O {[%emt 0:00:04]} Re8 {[%emt 0:00:
05]} 8. Re1 {[%emt 0:00:08]} h6 {[%emt 0:00:04]} 9. c3 {[%emt 0:00:01]} a6 {
[%emt 0:00:13]} 10. Bc4 {[%emt 0:00:06]} d6 {[%emt 0:00:06]} 11. h3 {[%emt 0:
00:04]} Ne7 {[%emt 0:00:03]} 12. a4 {[%emt 0:00:07]} Ng6 {[%emt 0:00:04]} 13.
a5 {[%emt 0:00:07]} Ba7 {[%emt 0:00:01]} 14. Be3 {[%emt 0:00:03]} Bxe3 {
[%emt 0:00:05]} 15. Rxe3 {[%emt 0:00:04]} Nf4 {[%emt 0:00:09]} 16. Nbd2 {
[%emt 0:00:12]} N6h5 {[%emt 0:00:15]} 17. Kh2 {[%emt 0:00:22]} Qf6 {[%emt 0:00:
03]} 18. Nf1 {[%emt 0:00:04]} Qg6 {[%emt 0:00:23]} 19. Ng3 {[%emt 0:00:09]} c6
{[%emt 0:00:22]} 20. Qb3 {[%emt 0:00:30]} Rb8 {[%emt 0:00:48]} 21. Rg1 {
[%emt 0:00:03]} Be6 {[%emt 0:00:03]} 22. d4 {[%emt 0:00:18]} d5 {[%emt 0:00:07]
} 23. exd5 {[%emt 0:00:06]} cxd5 {[%emt 0:00:03]} 24. Bf1 {[%emt 0:00:12]} e4 {
[%emt 0:00:04]} 25. Nd2 {[%emt 0:00:16]} f5 {[%emt 0:00:09]} 26. c4 {[%emt 0:
00:05]} Qf7 {[%emt 0:00:03]} 27. Rc3 {[%emt 0:00:20]} dxc4 {[%emt 0:00:07]} 28.
Bxc4 {[%emt 0:00:04]} Nd5 {[%emt 0:00:07]} 29. Nxh5 {[%emt 0:00:06]} Nxc3 {
[%emt 0:00:03]} 30. bxc3 {[%emt 0:00:03]} Qc7+ {[%emt 0:00:16]} 31. Kh1 {
[%emt 0:00:05]} Bxc4 {[%emt 0:00:01]} 32. Nxc4 {[%emt 0:00:03]} Kh7 {[%emt 0:
00:01]} 33. Ne5 {[%emt 0:00:02]} Rbc8 {[%emt 0:00:02]} 34. c4 {[%emt 0:00:01]}
Qe7 {[%emt 0:00:05]} 35. Ng3 {[%emt 0:00:04]} Qf6 {[%emt 0:00:04]} 36. Qxb7 {
[%emt 0:00:02]} Rb8 {[%emt 0:00:01]} 37. Qc6 {[%emt 0:00:02]} Re6 {[%emt 0:00:
01]} 38. Qd5 {[%emt 0:00:02]} Rb2 {[%emt 0:00:01]} 39. Rf1 {[%emt 0:00:05]} Rd6
{[%emt 0:00:03]} 40. Qc5 {[%emt 0:00:04]} Rd2 {[%emt 0:00:01]} 41. Qa7 {
[%emt 0:00:03]} R2xd4 {[%emt 0:00:03]} 42. c5 {[%emt 0:00:01]} Rd8 {[%emt 0:00:
03]} 43. f4 {[%emt 0:00:02]} e3 {[%emt 0:00:02]} 44. Nf3 {[%emt 0:00:02]} Rd1 {
[%emt 0:00:01]} 45. c6 {[%emt 0:00:02]} Rxf1+ {[%emt 0:00:02]} 46. Nxf1 {
[%emt 0:00:01]} e2 {[%emt 0:00:01]} 47. Ne3 {[%emt 0:00:01]} Rd1+ {[%emt 0:00:
01]} 48. Kh2 {[%emt 0:00:01]} e1=Q 49. Nxe1 {[%emt 0:00:01]} Rxe1 {[%emt 0:00:
03]} 50. Nd5 {[%emt 0:00:06]} Qxc6 {[%emt 0:00:02]} 51. Ne3 {[%emt 0:00:04]}
Qe4 {[%emt 0:00:02]} 0-1

[Event "FIDE Women World Blitz 2021"]
[Site "Warsaw"]
[Date "2021.12.30"]
[Round "13.4"]
[White "Nurgali, Nazerke"]
[Black "Smietanska, Wiktoria"]
[Result "0-1"]
[ECO "E92"]
[WhiteElo "2267"]
[BlackElo "1765"]
[Annotator "NA"]
[PlyCount "128"]
[EventDate "2021.12.29"]
[EventType "swiss"]
[EventCountry "POL"]
[Tiebreak "Cut1 Buchholz"]
[SourceTitle "playchess.com"]
[Source "ChessBase"]
[SourceQuality "1"]
[TimeControl "180+2"]

1. d4 {[%emt 0:00:01]} Nf6 {[%emt 0:00:01]} 2. Nf3 {[%emt 0:00:02]} g6 {
[%emt 0:00:01]} 3. c4 {[%emt 0:00:01]} Bg7 {[%emt 0:00:01]} 4. Nc3 {[%emt 0:00:
01]} O-O {[%emt 0:00:02]} 5. e4 {[%emt 0:00:02]} d6 {[%emt 0:00:00]} 6. Be2 {
[%emt 0:00:01]} e5 {[%emt 0:00:02]} 7. dxe5 {[%emt 0:00:02]} dxe5 {[%emt 0:00:
02]} 8. Qxd8 {[%emt 0:00:01]} Rxd8 {[%emt 0:00:01]} 9. Bg5 {[%emt 0:00:02]} Re8
{[%emt 0:00:01]} 10. O-O {[%emt 0:00:03]} c6 {[%emt 0:00:04]} 11. Rfd1 {
[%emt 0:00:01]} Na6 {[%emt 0:00:08]} 12. Nd2 {[%emt 0:00:02]} h6 {[%emt 0:00:
03]} 13. Be3 {[%emt 0:00:01]} Ng4 {[%emt 0:00:04]} 14. Bxg4 {[%emt 0:00:02]}
Bxg4 {[%emt 0:00:02]} 15. f3 {[%emt 0:00:01]} Be6 {[%emt 0:00:03]} 16. Rac1 {
[%emt 0:00:16]} Red8 {[%emt 0:00:16]} 17. Na4 {[%emt 0:00:11]} b6 {[%emt 0:00:
11]} 18. b3 {[%emt 0:00:23]} Nb4 {[%emt 0:00:21]} 19. Nc3 {[%emt 0:00:03]} f5 {
[%emt 0:00:11]} 20. Nf1 {[%emt 0:00:14]} f4 {[%emt 0:00:18]} 21. Bf2 {[%emt 0:
00:03]} Kf7 {[%emt 0:00:25]} 22. a3 {[%emt 0:00:29]} Nd3 {[%emt 0:00:07]} 23.
Rc2 {[%emt 0:00:00]} Bf8 {[%emt 0:00:04]} 24. a4 {[%emt 0:00:32]} Nc5 {[%emt 0:
00:26]} 25. Rb1 {[%emt 0:00:37]} Nd3 {[%emt 0:00:05]} 26. h3 {[%emt 0:00:09]}
Rd7 {[%emt 0:00:16]} 27. Na2 {[%emt 0:00:10]} Nxf2 {[%emt 0:00:27]} 28. Kxf2 {
[%emt 0:00:02]} Bc5+ {[%emt 0:00:02]} 29. Ke2 {[%emt 0:00:00]} a5 {[%emt 0:00:
02]} 30. Rd2 {[%emt 0:00:09]} Rad8 {[%emt 0:00:01]} 31. Rbd1 {[%emt 0:00:01]}
Rxd2+ {[%emt 0:00:06]} 32. Rxd2 {[%emt 0:00:01]} Rxd2+ {[%emt 0:00:02]} 33.
Nxd2 {[%emt 0:00:01]} g5 {[%emt 0:00:04]} 34. Nc1 {[%emt 0:00:02]} Kf6 {
[%emt 0:00:06]} 35. Nd3 {[%emt 0:00:01]} Bd4 {[%emt 0:00:02]} 36. Nb1 {[%emt 0:
00:07]} h5 {[%emt 0:00:02]} 37. Na3 {[%emt 0:00:01]} Bc3 {[%emt 0:00:02]} 38.
Nc2 {[%emt 0:00:03]} Bf7 {[%emt 0:00:03]} 39. Nc1 {[%emt 0:00:03]} Be6 {
[%emt 0:00:03]} 40. Kd3 {[%emt 0:00:01]} Bb4 {[%emt 0:00:01]} 41. Nxb4 {
[%emt 0:00:01]} axb4 {[%emt 0:00:01]} 42. Kc2 {[%emt 0:00:04]} c5 {[%emt 0:00:
00]} 43. Kd3 {[%emt 0:00:02]} g4 {[%emt 0:00:02]} 44. hxg4 {[%emt 0:00:01]}
hxg4 {[%emt 0:00:01]} 45. Ke2 {[%emt 0:00:02]} g3 {[%emt 0:00:01]} 46. Nd3 {
[%emt 0:00:02]} Bc8 {[%emt 0:00:03]} 47. a5 {[%emt 0:00:05]} bxa5 {[%emt 0:00:
01]} 48. Nxc5 {[%emt 0:00:01]} Ke7 {[%emt 0:00:04]} 49. Na4 {[%emt 0:00:06]}
Kd6 {[%emt 0:00:01]} 50. Nb6 {[%emt 0:00:02]} Be6 {[%emt 0:00:03]} 51. Kd3 {
[%emt 0:00:02]} Bh3 {[%emt 0:00:03]} 52. Ke2 {[%emt 0:00:04]} Bxg2 {[%emt 0:00:
01]} 53. Nd5 {[%emt 0:00:03]} Bh3 {[%emt 0:00:02]} 54. Nf6 {[%emt 0:00:04]} Bd7
{[%emt 0:00:02]} 55. Nd5 {[%emt 0:00:04]} Bc6 {[%emt 0:00:02]} 56. Nf6 {
[%emt 0:00:01]} a4 {[%emt 0:00:01]} 57. bxa4 {[%emt 0:00:02]} Bxa4 {[%emt 0:00:
01]} 58. Nd5 {[%emt 0:00:01]} Kc5 {[%emt 0:00:02]} 59. Nf6 {[%emt 0:00:04]}
Kxc4 {[%emt 0:00:02]} 60. Ng4 {[%emt 0:00:01]} Kd4 {[%emt 0:00:01]} 61. Nh6 {
[%emt 0:00:04]} Bb5+ {[%emt 0:00:02]} 62. Ke1 {[%emt 0:00:03]} Ke3 {[%emt 0:00:
05]} 63. Nf5+ {[%emt 0:00:02]} Kxf3 {[%emt 0:00:02]} 64. Nd6 {[%emt 0:00:02]}
g2 {[%emt 0:00:03]} 0-1

[Event "FIDE Women World Blitz 2021"]
[Site "Warsaw"]
[Date "2021.12.30"]
[Round "13.5"]
[White "Kosteniuk, Alexandra"]
[Black "Kiolbasa, Oliwia"]
[Result "1/2-1/2"]
[ECO "C84"]
[WhiteElo "2518"]
[BlackElo "2403"]
[Annotator "ChessBase"]
[PlyCount "154"]
[EventDate "2021.12.29"]
[EventType "swiss"]
[EventCountry "POL"]
[Tiebreak "Cut1 Buchholz"]
[SourceTitle "playchess.com"]
[Source "ChessBase"]
[SourceQuality "1"]
[TimeControl "180+2"]

1. e4 {[%emt 0:00:01]} e5 {[%emt 0:00:01]} 2. Nf3 {[%emt 0:00:01]} Nc6 {
[%emt 0:00:01]} 3. Bb5 {[%emt 0:00:01]} a6 {[%emt 0:00:01]} 4. Ba4 {[%emt 0:00:
01]} Nf6 {[%emt 0:00:01]} 5. d4 {[%emt 0:00:01]} exd4 {[%emt 0:00:10]} 6. O-O {
[%emt 0:00:18]} Be7 {[%emt 0:00:22]} 7. e5 {[%emt 0:00:01]} Ne4 {[%emt 0:00:08]
} 8. Nxd4 {[%emt 0:00:01]} Nxd4 {[%emt 0:00:41]} 9. Qxd4 {[%emt 0:00:02]} Nc5 {
[%emt 0:00:02]} 10. Nc3 {[%emt 0:00:07]} Nxa4 {[%emt 0:00:08]} 11. Qxa4 {
[%emt 0:00:06]} O-O {[%emt 0:00:09]} 12. Nd5 {[%emt 0:00:01]} d6 {[%emt 0:00:
16]} 13. Rd1 {[%emt 0:00:01]} Bd7 {[%emt 0:00:21]} 14. Qb4 {[%emt 0:00:11]} Bc6
{[%emt 0:00:20]} 15. Nxe7+ {[%emt 0:00:04]} Qxe7 {[%emt 0:00:02]} 16. exd6 {
[%emt 0:00:02]} cxd6 {[%emt 0:00:24]} 17. Bf4 {[%emt 0:00:01]} Rfe8 {[%emt 0:
00:05]} 18. Bxd6 {[%emt 0:00:21]} Qg5 {[%emt 0:00:03]} 19. Bg3 {[%emt 0:00:03]}
Rad8 {[%emt 0:00:05]} 20. h4 {[%emt 0:00:06]} Qf5 {[%emt 0:00:03]} 21. Qc3 {
[%emt 0:00:54]} h6 {[%emt 0:00:03]} 22. Re1 {[%emt 0:00:11]} Qd5 {[%emt 0:00:
03]} 23. f3 {[%emt 0:00:02]} Qf5 {[%emt 0:00:05]} 24. Kh2 {[%emt 0:00:05]} Qg6
{[%emt 0:00:03]} 25. b3 {[%emt 0:00:10]} Rc8 {[%emt 0:00:02]} 26. Rxe8+ {
[%emt 0:00:06]} Rxe8 {[%emt 0:00:01]} 27. Qd2 {[%emt 0:00:01]} Qf6 {[%emt 0:00:
05]} 28. Rd1 {[%emt 0:00:08]} Kh7 {[%emt 0:00:03]} 29. c4 {[%emt 0:00:02]} Re6
{[%emt 0:00:05]} 30. Qc2+ {[%emt 0:00:03]} Kg8 {[%emt 0:00:02]} 31. a4 {
[%emt 0:00:12]} Qe7 {[%emt 0:00:01]} 32. Rd2 {[%emt 0:00:03]} Re3 {[%emt 0:00:
03]} 33. a5 {[%emt 0:00:10]} Re6 {[%emt 0:00:03]} 34. b4 {[%emt 0:00:03]} Qxb4
{[%emt 0:00:04]} 35. Rd8+ {[%emt 0:00:02]} Re8 {[%emt 0:00:01]} 36. Rxe8+ {
[%emt 0:00:01]} Bxe8 {[%emt 0:00:01]} 37. Qe4 {[%emt 0:00:00]} Bc6 {[%emt 0:00:
01]} 38. Qg4 {[%emt 0:00:02]} Qxa5 {[%emt 0:00:03]} 39. Bf4 {[%emt 0:00:01]}
Kh7 {[%emt 0:00:03]} 40. h5 {[%emt 0:00:04]} Qc5 {[%emt 0:00:01]} 41. Bc1 {
[%emt 0:00:17]} a5 {[%emt 0:00:02]} 42. Bb2 {[%emt 0:00:01]} f6 {[%emt 0:00:02]
} 43. Qg6+ {[%emt 0:00:03]} Kh8 {[%emt 0:00:01]} 44. Qf7 {[%emt 0:00:02]} a4 {
[%emt 0:00:04]} 45. Qc7 {[%emt 0:00:12]} a3 {[%emt 0:00:01]} 46. Qd8+ {[%emt 0:
00:01]} Kh7 {[%emt 0:00:01]} 47. Qd3+ {[%emt 0:00:00]} Kg8 {[%emt 0:00:03]} 48.
Bxa3 {[%emt 0:00:01]} Qxh5+ {[%emt 0:00:02]} 49. Kg1 {[%emt 0:00:01]} Qe5 {
[%emt 0:00:01]} 50. Qd8+ {[%emt 0:00:01]} Kh7 {[%emt 0:00:01]} 51. Qd3+ {
[%emt 0:00:01]} Kg8 {[%emt 0:00:01]} 52. Qd8+ {[%emt 0:00:01]} Kf7 {[%emt 0:00:
04]} 53. Qd3 {[%emt 0:00:02]} Qe1+ {[%emt 0:00:02]} 54. Kh2 {[%emt 0:00:00]}
Qh4+ {[%emt 0:00:03]} 55. Kg1 {[%emt 0:00:01]} Qe1+ {[%emt 0:00:02]} 56. Kh2 {
[%emt 0:00:01]} Kg8 {[%emt 0:00:01]} 57. Qd8+ {[%emt 0:00:01]} Kh7 {[%emt 0:00:
01]} 58. Qd3+ {[%emt 0:00:01]} Kg8 {[%emt 0:00:02]} 59. Qd8+ {[%emt 0:00:03]}
Qe8 {[%emt 0:00:01]} 60. Qd3 {[%emt 0:00:03]} h5 {[%emt 0:00:03]} 61. Kg1 {
[%emt 0:00:05]} h4 {[%emt 0:00:02]} 62. Kh2 {[%emt 0:00:01]} Qe5+ {[%emt 0:00:
02]} 63. Kg1 {[%emt 0:00:01]} h3 {[%emt 0:00:02]} 64. Qd8+ {[%emt 0:00:04]} Kf7
{[%emt 0:00:03]} 65. Qd3 {[%emt 0:00:04]} hxg2 {[%emt 0:00:01]} 66. Kxg2 {
[%emt 0:00:01]} Qg5+ {[%emt 0:00:03]} 67. Kf2 {[%emt 0:00:00]} Qh4+ {[%emt 0:
00:01]} 68. Ke3 {[%emt 0:00:01]} Qg3 {[%emt 0:00:02]} 69. Qf5 {[%emt 0:00:06]}
Qe5+ {[%emt 0:00:02]} 70. Qxe5 {[%emt 0:00:02]} fxe5 {[%emt 0:00:01]} 71. c5 {
[%emt 0:00:06]} Ke6 {[%emt 0:00:02]} 72. f4 {[%emt 0:00:04]} exf4+ {[%emt 0:00:
06]} 73. Kxf4 {[%emt 0:00:01]} g6 {[%emt 0:00:02]} 74. Bc1 {[%emt 0:00:03]} Kd5
{[%emt 0:00:01]} 75. Be3 {[%emt 0:00:01]} Kc4 {[%emt 0:00:01]} 76. Kg5 {
[%emt 0:00:01]} Be4 {[%emt 0:00:01]} 77. Bg1 {[%emt 0:00:00]} Bf5 {[%emt 0:00:
01]} 1/2-1/2

[Event "FIDE Women World Blitz 2021"]
[Site "Warsaw"]
[Date "2021.12.30"]
[Round "13.5"]
[White "Jakubowska, Anna"]
[Black "Gil Quilez, Sonia"]
[Result "1/2-1/2"]
[ECO "B12"]
[WhiteElo "2106"]
[BlackElo "2122"]
[Annotator "NA"]
[PlyCount "144"]
[EventDate "2021.12.29"]
[EventType "swiss"]
[EventCountry "POL"]
[Tiebreak "Cut1 Buchholz"]
[SourceTitle "playchess.com"]
[Source "ChessBase"]
[SourceQuality "1"]
[TimeControl "180+2"]

1. e4 {[%emt 0:14:36]} c6 2. d4 {[%emt 0:00:00]} d5 {[%emt 0:00:04]} 3. e5 {
[%emt 0:00:00]} c5 {[%emt 0:00:01]} 4. dxc5 {[%emt 0:00:00]} Nc6 {[%emt 0:00:
01]} 5. Bb5 {[%emt 0:00:00]} e6 {[%emt 0:00:03]} 6. Be3 {[%emt 0:00:00]} Bd7 {
[%emt 0:00:01]} 7. Bxc6 {[%emt 0:00:00]} Bxc6 {[%emt 0:00:01]} 8. c3 {[%emt 0:
00:00]} Qc7 {[%emt 0:00:08]} 9. Nf3 {[%emt 0:00:00]} Ne7 {[%emt 0:00:04]} 10.
O-O {[%emt 0:00:00]} Ng6 {[%emt 0:00:01]} 11. Bd4 {[%emt 0:00:00]} Bb5 {
[%emt 0:00:03]} 12. Re1 {[%emt 0:00:00]} Bxc5 {[%emt 0:00:04]} 13. Qb3 {
[%emt 0:00:00]} a6 {[%emt 0:00:18]} 14. Bxc5 {[%emt 0:00:00]} Qxc5 {[%emt 0:00:
01]} 15. Nd4 {[%emt 0:00:00]} Bc6 {[%emt 0:00:13]} 16. Nd2 {[%emt 0:00:00]} O-O
{[%emt 0:00:03]} 17. N2f3 {[%emt 0:00:00]} Qe7 {[%emt 0:00:06]} 18. Qb6 {
[%emt 0:00:00]} Rac8 {[%emt 0:00:05]} 19. Rad1 {[%emt 0:00:00]} h6 {[%emt 0:00:
14]} 20. g3 {[%emt 0:00:00]} Qc7 {[%emt 0:00:11]} 21. Qb3 {[%emt 0:00:00]} b6 {
[%emt 0:00:08]} 22. Nxc6 {[%emt 0:00:00]} Qxc6 {[%emt 0:00:02]} 23. Nd4 {
[%emt 0:00:00]} Qc5 {[%emt 0:00:01]} 24. Qa4 {[%emt 0:00:00]} a5 {[%emt 0:00:
05]} 25. Nb5 {[%emt 0:00:00]} Qc6 {[%emt 0:00:04]} 26. Rd4 {[%emt 0:00:00]} Ne7
{[%emt 0:00:19]} 27. Nd6 {[%emt 0:00:00]} Qxa4 {[%emt 0:00:01]} 28. Rxa4 {
[%emt 0:00:00]} Rc6 {[%emt 0:00:01]} 29. c4 {[%emt 0:00:00]} dxc4 {[%emt 0:00:
02]} 30. Rxc4 {[%emt 0:00:00]} Rxc4 {[%emt 0:00:02]} 31. Nxc4 {[%emt 0:00:00]}
Nd5 {[%emt 0:00:01]} 32. Rd1 {[%emt 0:00:00]} Rc8 {[%emt 0:00:02]} 33. b3 {
[%emt 0:00:00]} a4 {[%emt 0:00:01]} 34. Nd6 {[%emt 0:00:00]} Rc2 {[%emt 0:00:
03]} 35. bxa4 {[%emt 0:00:00]} Nc3 {[%emt 0:00:07]} 36. Rd3 {[%emt 0:00:00]}
Nxa4 {[%emt 0:00:05]} 37. a3 {[%emt 0:00:00]} Nc5 {[%emt 0:00:01]} 38. Rd1 {
[%emt 0:00:00]} Re2 {[%emt 0:00:07]} 39. Nc4 {[%emt 0:00:00]} b5 {[%emt 0:00:
04]} 40. Rd8+ {[%emt 0:00:00]} Kh7 {[%emt 0:00:01]} 41. Nd6 {[%emt 0:00:00]}
Kg6 {[%emt 0:00:07]} 42. Nxb5 {[%emt 0:00:00]} Rxe5 {[%emt 0:00:03]} 43. Nd4 {
[%emt 0:00:00]} Ne4 {[%emt 0:00:05]} 44. Ra8 {[%emt 0:00:00]} Nc3 {[%emt 0:00:
04]} 45. a4 {[%emt 0:00:00]} Re4 {[%emt 0:00:02]} 46. Nb5 {[%emt 0:00:00]} Nxa4
{[%emt 0:00:02]} 47. Nd6 {[%emt 0:00:00]} Rd4 {[%emt 0:00:03]} 48. Nb5 {
[%emt 0:00:00]} Rd1+ {[%emt 0:00:02]} 49. Kg2 {[%emt 0:00:00]} Nc5 {[%emt 0:00:
00]} 50. Ra7 {[%emt 0:00:00]} Ne4 {[%emt 0:00:03]} 51. Kf3 {[%emt 0:00:00]}
Ng5+ {[%emt 0:00:01]} 52. Ke2 {[%emt 0:00:00]} Rb1 {[%emt 0:00:03]} 53. Nd6 {
[%emt 0:00:00]} Rb2+ {[%emt 0:00:01]} 54. Ke3 {[%emt 0:00:00]} Rb3+ {[%emt 0:
00:03]} 55. Ke2 {[%emt 0:00:00]} Rb6 {[%emt 0:00:03]} 56. Nc4 {[%emt 0:00:00]}
Rc6 {[%emt 0:00:02]} 57. Ne5+ {[%emt 0:00:00]} Kf5 {[%emt 0:00:02]} 58. Nxc6 {
[%emt 0:00:00]} h5 {[%emt 0:00:02]} 59. h4 {[%emt 0:00:00]} Ne4 {[%emt 0:00:04]
} 60. Rxf7+ {[%emt 0:00:00]} Kg6 {[%emt 0:00:01]} 61. Re7 {[%emt 0:00:00]} Kf6
{[%emt 0:00:01]} 62. Ra7 {[%emt 0:00:00]} Nc3+ {[%emt 0:00:02]} 63. Kd3 {
[%emt 0:00:00]} Nd5 {[%emt 0:00:00]} 64. Nd8 {[%emt 0:00:00]} g6 {[%emt 0:00:
04]} 65. Ra6 {[%emt 0:00:00]} Nb4+ {[%emt 0:00:01]} 66. Ke4 {[%emt 0:00:00]}
Nxa6 {[%emt 0:00:01]} 67. f3 {[%emt 0:00:01]} Nc7 {[%emt 0:00:00]} 68. Nc6 {
[%emt 0:00:00]} Nd5 {[%emt 0:00:02]} 69. Ne5 {[%emt 0:00:00]} Ne7 {[%emt 0:00:
01]} 70. Nd7+ {[%emt 0:00:00]} Kf7 {[%emt 0:00:01]} 71. Ne5+ {[%emt 0:00:00]}
Kf6 {[%emt 0:00:00]} 72. Nd7+ {[%emt 0:00:00]} Kf7 {[%emt 0:00:01]} 1/2-1/2